[Event "*** Titled Tuesday Blitz"]
[Site "Chess.com"]
[Date "2020.12.29"]
[Round "5"]
[White "WPWPWP-2015"]
[Black "horripile"]
[Result "1-0"]
[WhiteElo "2470"]
[BlackElo "2676"]
[TimeControl "180+1"]
[EndTime "10:57:53 PST"]
[Termination "WPWPWP-2015 won by checkmate"]

1. e4 {[%clk 0:03:00.9]} 1... d6 {[%clk 0:02:58.5]} 2. d4 {[%clk 0:02:59.9]}
2... Nf6 {[%clk 0:02:58.3]} 3. Nc3 {[%clk 0:03:00.6]} 3... e5 {[%clk 0:02:58.9]}
4. Nf3 {[%clk 0:03:00.5]} 4... Nbd7 {[%clk 0:02:58.7]} 5. Bc4 {[%clk 0:03:00.3]}
5... exd4 {[%clk 0:02:59.2]} 6. Nxd4 {[%clk 0:02:59.9]} 6... Nb6 {[%clk
0:02:59.6]} 7. Bb3 {[%clk 0:02:57.5]} 7... c5 {[%clk 0:03:00]} 8. Nf3 {[%clk
0:02:19.4]} 8... c4 {[%clk 0:02:57.4]} 9. Ba4+ {[%clk 0:02:19.3]} 9... Nxa4
{[%clk 0:02:57.5]} 10. Nxa4 {[%clk 0:02:19.4]} 10... Nxe4 {[%clk 0:02:58.2]} 11.
Qd5 {[%clk 0:02:05.5]} 11... Nc5 {[%clk 0:02:57.2]} 12. Nxc5 {[%clk 0:01:56.4]}
12... Qa5+ {[%clk 0:02:56.7]} 13. Bd2 {[%clk 0:01:46.3]} 13... Qxc5 {[%clk
0:02:56.6]} 14. Qxc5 {[%clk 0:01:45.6]} 14... dxc5 {[%clk 0:02:57.5]} 15. O-O-O
{[%clk 0:01:43.7]} 15... f6 {[%clk 0:02:58.1]} 16. Bf4 {[%clk 0:01:39.6]} 16...
Be6 {[%clk 0:02:53.1]} 17. Rhe1 {[%clk 0:01:37.1]} 17... Kf7 {[%clk 0:02:53.3]}
18. h3 {[%clk 0:01:27.6]} 18... Be7 {[%clk 0:02:51]} 19. Be3 {[%clk 0:01:19]}
19... Rhd8 {[%clk 0:02:48.2]} 20. a3 {[%clk 0:01:18]} 20... Bd5 {[%clk 0:02:41]}
21. Rd2 {[%clk 0:01:11.3]} 21... Bxf3 {[%clk 0:02:40.4]} 22. gxf3 {[%clk
0:01:11.1]} 22... b6 {[%clk 0:02:39.5]} 23. Red1 {[%clk 0:01:08.4]} 23... Rxd2
{[%clk 0:02:39]} 24. Rxd2 {[%clk 0:01:03.3]} 24... Rd8 {[%clk 0:02:39.3]} 25.
Re2 {[%clk 0:00:43.4]} 25... Rd5 {[%clk 0:02:37.3]} 26. Rd2 {[%clk 0:00:30.4]}
26... Ke6 {[%clk 0:02:36]} 27. Rxd5 {[%clk 0:00:27.4]} 27... Kxd5 {[%clk
0:02:36.9]} 28. Kd2 {[%clk 0:00:27]} 28... Bd6 {[%clk 0:02:35.4]} 29. c3 {[%clk
0:00:21.5]} 29... b5 {[%clk 0:02:25.2]} 30. Ke2 {[%clk 0:00:21]} 30... a5 {[%clk
0:02:23.7]} 31. Bd2 {[%clk 0:00:19.3]} 31... g5 {[%clk 0:02:11.6]} 32. Be3
{[%clk 0:00:17]} 32... Ke6 {[%clk 0:02:07.1]} 33. Bd2 {[%clk 0:00:15.3]} 33...
h5 {[%clk 0:02:04.2]} 34. Be3 {[%clk 0:00:14.2]} 34... Kf5 {[%clk 0:02:02.4]}
35. Kf1 {[%clk 0:00:13.9]} 35... Ke6 {[%clk 0:01:45]} 36. Ke2 {[%clk 0:00:13.6]}
36... Kd5 {[%clk 0:01:44.4]} 37. Kf1 {[%clk 0:00:13.5]} 37... b4 {[%clk
0:01:40.7]} 38. a4 {[%clk 0:00:07.5]} 38... b3 {[%clk 0:01:37.6]} 39. Ke2 {[%clk
0:00:07.5]} 39... Be5 {[%clk 0:01:34.4]} 40. Bd2 {[%clk 0:00:06.7]} 40... Ke6
{[%clk 0:01:30.8]} 41. Kf1 {[%clk 0:00:06.7]} 41... Kf5 {[%clk 0:01:30.3]} 42.
Kg2 {[%clk 0:00:07]} 42... Bf4 {[%clk 0:01:30.1]} 43. Be3 {[%clk 0:00:07.3]}
43... Ke5 {[%clk 0:01:11.7]} 44. Bxc5 {[%clk 0:00:06.9]} 44... Bc1 {[%clk
0:01:10.6]} 45. Ba3 {[%clk 0:00:07]} 45... Kf4 {[%clk 0:01:03.7]} 46. Bd6+
{[%clk 0:00:06.4]} 46... Kf5 {[%clk 0:01:04.3]} 47. Ba3 {[%clk 0:00:06.5]} 47...
Ke5 {[%clk 0:01:03.5]} 48. Kf1 {[%clk 0:00:06.2]} 48... f5 {[%clk 0:01:02.5]}
49. Ke2 {[%clk 0:00:06.3]} 49... g4 {[%clk 0:00:57]} 50. fxg4 {[%clk 0:00:06.3]}
50... fxg4 {[%clk 0:00:57.5]} 51. hxg4 {[%clk 0:00:06.6]} 51... h4 {[%clk
0:00:57.6]} 52. f3 {[%clk 0:00:05.1]} 52... h3 {[%clk 0:00:40.8]} 53. Kf2 {[%clk
0:00:05.3]} 53... Bf4 {[%clk 0:00:41]} 54. Bc5 {[%clk 0:00:05.3]} 54... Kf6
{[%clk 0:00:39.6]} 55. Bd4+ {[%clk 0:00:04.1]} 55... Kg5 {[%clk 0:00:37.7]} 56.
Bc5 {[%clk 0:00:03.9]} 56... Be5 {[%clk 0:00:20.4]} 57. Ba3 {[%clk 0:00:03.8]}
57... Kf4 {[%clk 0:00:16.7]} 58. Bf8 {[%clk 0:00:03.6]} 58... Kg5 {[%clk
0:00:10.9]} 59. Be7+ {[%clk 0:00:03.7]} 59... Kg6 {[%clk 0:00:10.9]} 60. Ba3
{[%clk 0:00:03.6]} 60... Kf6 {[%clk 0:00:09.9]} 61. Kf1 {[%clk 0:00:03.2]} 61...
Bf4 {[%clk 0:00:07.9]} 62. Kf2 {[%clk 0:00:03.5]} 62... Kg5 {[%clk 0:00:08.1]}
63. Be7+ {[%clk 0:00:02.8]} 63... Kg6 {[%clk 0:00:07.4]} 64. Bc5 {[%clk
0:00:03.5]} 64... Bd2 {[%clk 0:00:06.8]} 65. Ba3 {[%clk 0:00:03.6]} 65... Kg5
{[%clk 0:00:06.9]} 66. Kg3 {[%clk 0:00:03.8]} 66... h2 {[%clk 0:00:05.9]} 67.
Kxh2 {[%clk 0:00:04.1]} 67... Kf4 {[%clk 0:00:06.8]} 68. Kg2 {[%clk 0:00:04.8]}
68... Ke3 {[%clk 0:00:07.2]} 69. g5 {[%clk 0:00:05.3]} 69... Kd3 {[%clk
0:00:07.5]} 70. g6 {[%clk 0:00:05.8]} 70... Bh6 {[%clk 0:00:08.4]} 71. Kg3
{[%clk 0:00:06.3]} 71... Kc2 {[%clk 0:00:08.6]} 72. Kg4 {[%clk 0:00:06.6]} 72...
Bg7 {[%clk 0:00:09.1]} 73. f4 {[%clk 0:00:07]} 73... Kb1 {[%clk 0:00:04.1]} 74.
Kg5 {[%clk 0:00:07.4]} 74... Ka2 {[%clk 0:00:04.5]} 75. f5 {[%clk 0:00:07.8]}
75... Bxc3 {[%clk 0:00:04.7]} 76. f6 {[%clk 0:00:08.2]} 76... Bxb2 {[%clk
0:00:04.3]} 77. Bxb2 {[%clk 0:00:08.6]} 77... Kxb2 {[%clk 0:00:05.2]} 78. g7
{[%clk 0:00:08.7]} 78... c3 {[%clk 0:00:06.1]} 79. g8=Q {[%clk 0:00:08.8]} 79...
c2 {[%clk 0:00:07]} 80. Qc4 {[%clk 0:00:08.6]} 80... c1=Q+ {[%clk 0:00:07.1]}
81. Qxc1+ {[%clk 0:00:08.8]} 81... Kxc1 {[%clk 0:00:08]} 82. f7 {[%clk
0:00:09.3]} 82... b2 {[%clk 0:00:08.9]} 83. f8=Q {[%clk 0:00:09.4]} 83... b1=Q
{[%clk 0:00:09.8]} 84. Qc5+ {[%clk 0:00:09.4]} 84... Qc2 {[%clk 0:00:08.4]} 85.
Qxa5 {[%clk 0:00:09.5]} 85... Qg2+ {[%clk 0:00:07]} 86. Kf5 {[%clk 0:00:09.9]}
86... Qf3+ {[%clk 0:00:06.2]} 87. Ke6 {[%clk 0:00:09.9]} 87... Qg4+ {[%clk
0:00:05.2]} 88. Ke7 {[%clk 0:00:09.2]} 88... Qh4+ {[%clk 0:00:04.5]} 89. Kd7
{[%clk 0:00:08.9]} 89... Kb2 {[%clk 0:00:02.5]} 90. Qb5+ {[%clk 0:00:07.9]}
90... Ka3 {[%clk 0:00:02.2]} 91. a5 {[%clk 0:00:08.3]} 91... Qh7+ {[%clk
0:00:01.3]} 92. Kc6 {[%clk 0:00:08]} 92... Qg6+ {[%clk 0:00:01.8]} 93. Kb7
{[%clk 0:00:08.3]} 93... Qf7+ {[%clk 0:00:02]} 94. Kb6 {[%clk 0:00:08.6]} 94...
Qe6+ {[%clk 0:00:01.8]} 95. Qc6 {[%clk 0:00:08.7]} 95... Qe7 {[%clk 0:00:01.7]}
96. a6 {[%clk 0:00:07.6]} 96... Qe2 {[%clk 0:00:01.2]} 97. a7 {[%clk 0:00:07]}
97... Qf2+ {[%clk 0:00:01.6]} 98. Qc5+ {[%clk 0:00:07.2]} 98... Ka4 {[%clk
0:00:02.5]} 99. Qxf2 {[%clk 0:00:06.1]} 99... Kb4 {[%clk 0:00:02.9]} 100. Qf4+
{[%clk 0:00:06.2]} 100... Kb3 {[%clk 0:00:02.5]} 101. Qe3+ {[%clk 0:00:06.8]}
101... Kc4 {[%clk 0:00:02.5]} 102. Qe4+ {[%clk 0:00:07.7]} 102... Kb3 {[%clk
0:00:02.6]} 103. Kc5 {[%clk 0:00:08.3]} 103... Kc3 {[%clk 0:00:02.3]} 104. Qd4+
{[%clk 0:00:08.7]} 104... Kb3 {[%clk 0:00:02.6]} 105. Qc4+ {[%clk 0:00:09.6]}
105... Kb2 {[%clk 0:00:02.2]} 106. Qb4+ {[%clk 0:00:10.5]} 106... Kc2 {[%clk
0:00:02.3]} 107. Kc4 {[%clk 0:00:10.6]} 107... Kc1 {[%clk 0:00:02]} 108. a8=Q
{[%clk 0:00:10.2]} 108... Kc2 {[%clk 0:00:02.2]} 109. Qa2+ {[%clk 0:00:09.9]}
109... Kd1 {[%clk 0:00:02.2]} 110. Qbd2# {[%clk 0:00:09.4]} 1-0

[Event "*** Titled Tuesday Blitz"]
[Site "Chess.com"]
[Date "2020.12.29"]
[Round "5"]
[White "klimkoj"]
[Black "vrekhson"]
[Result "1/2-1/2"]
[WhiteElo "2580"]
[BlackElo "2250"]
[TimeControl "180+1"]
[EndTime "10:57:55 PST"]
[Termination "Game drawn by stalemate"]

1. e4 {[%clk 0:03:00.9]} 1... c5 {[%clk 0:02:56.7]} 2. Nf3 {[%clk 0:02:57.9]}
2... a6 {[%clk 0:02:56.7]} 3. c3 {[%clk 0:02:42.5]} 3... e6 {[%clk 0:02:56.6]}
4. d4 {[%clk 0:02:42.5]} 4... d5 {[%clk 0:02:56.8]} 5. exd5 {[%clk 0:02:42.1]}
5... exd5 {[%clk 0:02:55.2]} 6. Bd3 {[%clk 0:02:39.7]} 6... Nf6 {[%clk
0:02:53.4]} 7. O-O {[%clk 0:02:39.2]} 7... Be7 {[%clk 0:02:52.9]} 8. dxc5 {[%clk
0:02:39.3]} 8... Bxc5 {[%clk 0:02:50.2]} 9. Re1+ {[%clk 0:02:39.3]} 9... Be7
{[%clk 0:02:50.2]} 10. Qe2 {[%clk 0:02:34.7]} 10... Nc6 {[%clk 0:02:49.3]} 11.
Ne5 {[%clk 0:02:34.6]} 11... Be6 {[%clk 0:02:47.9]} 12. Nxc6 {[%clk 0:02:30.9]}
12... bxc6 {[%clk 0:02:48.8]} 13. f4 {[%clk 0:02:30.8]} 13... O-O {[%clk
0:02:43.6]} 14. f5 {[%clk 0:02:31.1]} 14... Bc5+ {[%clk 0:02:43.4]} 15. Kh1
{[%clk 0:02:30.4]} 15... Bd7 {[%clk 0:02:43]} 16. Qf3 {[%clk 0:02:15.5]} 16...
Re8 {[%clk 0:02:29.1]} 17. Rxe8+ {[%clk 0:02:14.2]} 17... Qxe8 {[%clk 0:02:30]}
18. Bd2 {[%clk 0:01:53.7]} 18... Ne4 {[%clk 0:02:28.5]} 19. Be3 {[%clk
0:01:14.9]} 19... Bxe3 {[%clk 0:01:58.7]} 20. Qxe3 {[%clk 0:01:11.3]} 20... Bxf5
{[%clk 0:01:58.3]} 21. Na3 {[%clk 0:00:42.9]} 21... Rb8 {[%clk 0:01:47.9]} 22.
b3 {[%clk 0:00:42.4]} 22... Bg6 {[%clk 0:01:39.6]} 23. Bxe4 {[%clk 0:00:31.9]}
23... Qxe4 {[%clk 0:01:36.1]} 24. Qxe4 {[%clk 0:00:30.3]} 24... Bxe4 {[%clk
0:01:32.2]} 25. Kg1 {[%clk 0:00:30.4]} 25... f6 {[%clk 0:01:25.5]} 26. Re1
{[%clk 0:00:29.7]} 26... Kf7 {[%clk 0:01:25.4]} 27. Kf2 {[%clk 0:00:30.1]} 27...
Ke6 {[%clk 0:01:25.5]} 28. g3 {[%clk 0:00:30.5]} 28... g5 {[%clk 0:01:21.9]} 29.
Nc2 {[%clk 0:00:29.8]} 29... c5 {[%clk 0:01:18.1]} 30. Ne3 {[%clk 0:00:21.2]}
30... f5 {[%clk 0:01:16.6]} 31. Rc1 {[%clk 0:00:16.8]} 31... Rd8 {[%clk
0:01:13.7]} 32. Nf1 {[%clk 0:00:16.2]} 32... d4 {[%clk 0:01:12]} 33. cxd4 {[%clk
0:00:15.6]} 33... cxd4 {[%clk 0:01:12.9]} 34. Ke1 {[%clk 0:00:14.7]} 34... Rd6
{[%clk 0:01:11.7]} 35. Kd2 {[%clk 0:00:14.5]} 35... Rc6 {[%clk 0:01:10.2]} 36.
Rxc6+ {[%clk 0:00:14.2]} 36... Bxc6 {[%clk 0:01:11.1]} 37. Ke1 {[%clk
0:00:12.7]} 37... Ke5 {[%clk 0:01:10.2]} 38. Nd2 {[%clk 0:00:13.1]} 38... Be4
{[%clk 0:01:09.3]} 39. Nc4+ {[%clk 0:00:13]} 39... Kd5 {[%clk 0:01:08]} 40. Kd2
{[%clk 0:00:11.4]} 40... Kc5 {[%clk 0:01:06.5]} 41. a3 {[%clk 0:00:10.8]} 41...
f4 {[%clk 0:01:06.1]} 42. gxf4 {[%clk 0:00:10.6]} 42... gxf4 {[%clk 0:01:07]}
43. Nb2 {[%clk 0:00:09]} 43... a5 {[%clk 0:01:05]} 44. Nc4 {[%clk 0:00:08.5]}
44... a4 {[%clk 0:01:03.5]} 45. Na5 {[%clk 0:00:09]} 45... axb3 {[%clk
0:00:58.4]} 46. Nxb3+ {[%clk 0:00:09.9]} 46... Kc4 {[%clk 0:00:58.2]} 47. Na5+
{[%clk 0:00:10.1]} 47... Kb5 {[%clk 0:00:54]} 48. Nb3 {[%clk 0:00:09.5]} 48...
Kc4 {[%clk 0:00:54.2]} 49. Na5+ {[%clk 0:00:09.3]} 49... Kd5 {[%clk 0:00:54.8]}
50. Nb3 {[%clk 0:00:08.7]} 50... f3 {[%clk 0:00:54.8]} 51. a4 {[%clk 0:00:07.7]}
51... Bc2 {[%clk 0:00:51]} 52. Nc1 {[%clk 0:00:07.2]} 52... Bxa4 {[%clk
0:00:49.2]} 53. Nd3 {[%clk 0:00:06.8]} 53... Bb5 {[%clk 0:00:45.9]} 54. Nf2
{[%clk 0:00:07]} 54... Ke5 {[%clk 0:00:46.1]} 55. Ng4+ {[%clk 0:00:07.2]} 55...
Kf4 {[%clk 0:00:46.4]} 56. Nf2 {[%clk 0:00:08.1]} 56... Kg5 {[%clk 0:00:38.2]}
57. Nh3+ {[%clk 0:00:07.8]} 57... Kg4 {[%clk 0:00:36.7]} 58. Nf2+ {[%clk
0:00:08.7]} 58... Kf4 {[%clk 0:00:36.8]} 59. Nh3+ {[%clk 0:00:08.2]} 59... Ke4
{[%clk 0:00:37.1]} 60. Nf2+ {[%clk 0:00:08.6]} 60... Ke5 {[%clk 0:00:36.6]} 61.
Nh3 {[%clk 0:00:08.4]} 61... Bf1 {[%clk 0:00:34.4]} 62. Nf2 {[%clk 0:00:08.6]}
62... h5 {[%clk 0:00:33]} 63. Ke1 {[%clk 0:00:08.3]} 63... Bg2 {[%clk
0:00:30.7]} 64. Kd2 {[%clk 0:00:08.5]} 64... Bf1 {[%clk 0:00:28.6]} 65. Ke1
{[%clk 0:00:08.5]} 65... Bc4 {[%clk 0:00:28.4]} 66. Kd2 {[%clk 0:00:08.6]} 66...
h4 {[%clk 0:00:26]} 67. Ke1 {[%clk 0:00:08]} 67... Kf4 {[%clk 0:00:25.4]} 68.
Kd2 {[%clk 0:00:07.8]} 68... Bb5 {[%clk 0:00:24.9]} 69. Nh3+ {[%clk 0:00:07.8]}
69... Ke5 {[%clk 0:00:21.9]} 70. Nf2 {[%clk 0:00:08.7]} 70... Bd7 {[%clk
0:00:17.9]} 71. Nd3+ {[%clk 0:00:07.3]} 71... Kd5 {[%clk 0:00:16]} 72. Nb4+
{[%clk 0:00:04.6]} 72... Kc4 {[%clk 0:00:15.7]} 73. Nd3 {[%clk 0:00:04.6]} 73...
h3 {[%clk 0:00:15.3]} 74. Nf2 {[%clk 0:00:05.4]} 74... Bf5 {[%clk 0:00:15.2]}
75. Nd1 {[%clk 0:00:05.1]} 75... Kd5 {[%clk 0:00:13.7]} 76. Nf2 {[%clk 0:00:06]}
76... Ke5 {[%clk 0:00:13.3]} 77. Nd1 {[%clk 0:00:06.2]} 77... Kf4 {[%clk
0:00:13.5]} 78. Nf2 {[%clk 0:00:07.1]} 78... Ke5 {[%clk 0:00:11.8]} 79. Nd1
{[%clk 0:00:07.1]} 79... Kf6 {[%clk 0:00:12.1]} 80. Nf2 {[%clk 0:00:08]} 80...
Kg5 {[%clk 0:00:12.6]} 81. Nd1 {[%clk 0:00:07.8]} 81... Kg4 {[%clk 0:00:11.4]}
82. Nf2+ {[%clk 0:00:08.7]} 82... Kf4 {[%clk 0:00:11.5]} 83. Nd1 {[%clk
0:00:07.7]} 83... d3 {[%clk 0:00:12.1]} 84. Nf2 {[%clk 0:00:07.9]} 84... Ke5
{[%clk 0:00:11.4]} 85. Ke3 {[%clk 0:00:08.2]} 85... Kd5 {[%clk 0:00:10.6]} 86.
Kd2 {[%clk 0:00:05.4]} 86... Kd4 {[%clk 0:00:10.6]} 87. Nd1 {[%clk 0:00:05.4]}
87... Bg4 {[%clk 0:00:10.4]} 88. Nf2 {[%clk 0:00:05.6]} 88... Bf5 {[%clk
0:00:10.7]} 89. Nd1 {[%clk 0:00:05.6]} 89... Bd7 {[%clk 0:00:10.4]} 90. Nf2
{[%clk 0:00:05.7]} 90... Be6 {[%clk 0:00:10.4]} 91. Nxd3 {[%clk 0:00:05.5]}
91... Bd7 {[%clk 0:00:07.7]} 92. Nf2 {[%clk 0:00:06.4]} 92... Ke5 {[%clk
0:00:07.5]} 93. Ke1 {[%clk 0:00:06.7]} 93... Kf4 {[%clk 0:00:07.5]} 94. Nd1
{[%clk 0:00:06.9]} 94... Bb5 {[%clk 0:00:06.7]} 95. Kf2 {[%clk 0:00:06.7]} 95...
Be2 {[%clk 0:00:06.9]} 96. Ne3 {[%clk 0:00:07.6]} 96... Ke4 {[%clk 0:00:06.7]}
97. Ng4 {[%clk 0:00:06.9]} 97... Kf4 {[%clk 0:00:06.6]} 98. Nf6 {[%clk
0:00:07.1]} 98... Bc4 {[%clk 0:00:06.6]} 99. Nd7 {[%clk 0:00:06.8]} 99... Be6
{[%clk 0:00:06.1]} 100. Nc5 {[%clk 0:00:06.8]} 100... Bd5 {[%clk 0:00:06.2]}
101. Nd3+ {[%clk 0:00:07.1]} 101... Ke4 {[%clk 0:00:04.9]} 102. Nb4 {[%clk
0:00:07.3]} 102... Bc4 {[%clk 0:00:04.6]} 103. Nc2 {[%clk 0:00:06.1]} 103... Bd3
{[%clk 0:00:03.7]} 104. Ne3 {[%clk 0:00:07]} 104... Bb5 {[%clk 0:00:03.4]} 105.
Nd1 {[%clk 0:00:06.6]} 105... Kf4 {[%clk 0:00:03.4]} 106. Nc3 {[%clk 0:00:05.3]}
106... Bd3 {[%clk 0:00:02.9]} 107. Na2 {[%clk 0:00:05.2]} 107... Be2 {[%clk
0:00:01.9]} 108. Nc1 {[%clk 0:00:06.1]} 108... Bc4 {[%clk 0:00:01.2]} 109. Nd3+
{[%clk 0:00:03.8]} 109... Bxd3 {[%clk 0:00:01.2]} 110. Ke1 {[%clk 0:00:03.9]}
110... Ke3 {[%clk 0:00:01.8]} 111. Kd1 {[%clk 0:00:03.9]} 111... f2 {[%clk
0:00:02.7]} 112. Kc1 {[%clk 0:00:04.8]} 112... f1=Q+ {[%clk 0:00:03.5]} 113. Kb2
{[%clk 0:00:05.7]} 113... Qb1+ {[%clk 0:00:04.1]} 114. Kc3 {[%clk 0:00:05.5]}
114... Qb6 {[%clk 0:00:04.5]} 1/2-1/2

[Event "*** Titled Tuesday Blitz"]
[Site "Chess.com"]
[Date "2020.12.29"]
[Round "5"]
[White "Logman74"]
[Black "FGHSMN"]
[Result "1/2-1/2"]
[WhiteElo "2378"]
[BlackElo "2645"]
[TimeControl "180+1"]
[EndTime "10:58:13 PST"]
[Termination "Game drawn - insufficient material"]

1. e4 {[%clk 0:03:00.5]} 1... c5 {[%clk 0:02:52.9]} 2. Nf3 {[%clk 0:02:59.5]}
2... e6 {[%clk 0:02:52]} 3. d4 {[%clk 0:02:59.6]} 3... cxd4 {[%clk 0:02:52.9]}
4. Nxd4 {[%clk 0:02:59.2]} 4... a6 {[%clk 0:02:53.2]} 5. Bd3 {[%clk 0:02:58.7]}
5... Nf6 {[%clk 0:02:52.8]} 6. O-O {[%clk 0:02:58.1]} 6... d6 {[%clk 0:02:52.5]}
7. c4 {[%clk 0:02:56.4]} 7... Be7 {[%clk 0:02:52.6]} 8. Nc3 {[%clk 0:02:55.7]}
8... O-O {[%clk 0:02:53.1]} 9. Be3 {[%clk 0:02:56.2]} 9... Nbd7 {[%clk
0:02:52.7]} 10. f4 {[%clk 0:02:56.3]} 10... Qc7 {[%clk 0:02:51.7]} 11. b4 {[%clk
0:02:55.9]} 11... Re8 {[%clk 0:02:51.1]} 12. Rc1 {[%clk 0:02:55.8]} 12... b6
{[%clk 0:02:42.2]} 13. Kh1 {[%clk 0:02:54.2]} 13... Bb7 {[%clk 0:02:41.7]} 14.
Qe2 {[%clk 0:02:52.9]} 14... Rac8 {[%clk 0:02:40.2]} 15. a4 {[%clk 0:02:48.4]}
15... Qb8 {[%clk 0:02:37.5]} 16. Nb3 {[%clk 0:02:48.3]} 16... Bf8 {[%clk
0:02:34.5]} 17. a5 {[%clk 0:02:47.8]} 17... bxa5 {[%clk 0:02:21.6]} 18. Nxa5
{[%clk 0:02:46.6]} 18... Ba8 {[%clk 0:02:21.6]} 19. b5 {[%clk 0:02:36.9]} 19...
axb5 {[%clk 0:02:20.4]} 20. cxb5 {[%clk 0:02:31.5]} 20... Nc5 {[%clk 0:02:15]}
21. Bd4 {[%clk 0:02:12]} 21... e5 {[%clk 0:01:39.7]} 22. fxe5 {[%clk 0:02:03.4]}
22... dxe5 {[%clk 0:01:40.6]} 23. Bg1 {[%clk 0:01:46.7]} 23... Nxd3 {[%clk
0:01:36.8]} 24. Qxd3 {[%clk 0:01:45.3]} 24... Bb4 {[%clk 0:01:23]} 25. Nc6
{[%clk 0:01:17.2]} 25... Bxc6 {[%clk 0:01:19.2]} 26. bxc6 {[%clk 0:01:15.6]}
26... Rxc6 {[%clk 0:01:16.7]} 27. Nd5 {[%clk 0:01:14.9]} 27... Rxc1 {[%clk
0:01:13]} 28. Nxf6+ {[%clk 0:01:14.5]} 28... gxf6 {[%clk 0:01:13.6]} 29. Rxc1
{[%clk 0:01:14.6]} 29... Qd6 {[%clk 0:01:08.3]} 30. Qf3 {[%clk 0:00:51]} 30...
Qe6 {[%clk 0:00:50.8]} 31. Rb1 {[%clk 0:00:46.2]} 31... Be7 {[%clk 0:00:48.9]}
32. Rb6 {[%clk 0:00:41.6]} 32... Qd7 {[%clk 0:00:47.8]} 33. h3 {[%clk
0:00:38.2]} 33... Rd8 {[%clk 0:00:46.1]} 34. Qg3+ {[%clk 0:00:31.1]} 34... Kh8
{[%clk 0:00:43]} 35. Qb3 {[%clk 0:00:29]} 35... Bd6 {[%clk 0:00:28.7]} 36. Rb7
{[%clk 0:00:26.3]} 36... Qe6 {[%clk 0:00:28.6]} 37. Qb6 {[%clk 0:00:24]} 37...
Rg8 {[%clk 0:00:22.6]} 38. Qa7 {[%clk 0:00:21.3]} 38... Rf8 {[%clk 0:00:18.9]}
39. Qa6 {[%clk 0:00:16]} 39... Bb8 {[%clk 0:00:14.3]} 40. Rb6 {[%clk 0:00:15.2]}
40... Qc8 {[%clk 0:00:12.4]} 41. Qa3 {[%clk 0:00:10.7]} 41... Re8 {[%clk
0:00:09.9]} 42. Rxf6 {[%clk 0:00:09.4]} 42... Qd7 {[%clk 0:00:10]} 43. Qb3
{[%clk 0:00:08]} 43... Kg7 {[%clk 0:00:08]} 44. Rf5 {[%clk 0:00:07.1]} 44... Bd6
{[%clk 0:00:08.2]} 45. Qg3+ {[%clk 0:00:05.9]} 45... Kh8 {[%clk 0:00:08.4]} 46.
Qh4 {[%clk 0:00:06.7]} 46... Qe7 {[%clk 0:00:08.9]} 47. Qh5 {[%clk 0:00:07.1]}
47... f6 {[%clk 0:00:08.4]} 48. Be3 {[%clk 0:00:07.2]} 48... Rf8 {[%clk
0:00:08.8]} 49. Kh2 {[%clk 0:00:07.7]} 49... Qf7 {[%clk 0:00:08.8]} 50. Bh6
{[%clk 0:00:08.4]} 50... Qxh5 {[%clk 0:00:08.6]} 51. Rxh5 {[%clk 0:00:09.1]}
51... Rg8 {[%clk 0:00:08.7]} 52. Rh4 {[%clk 0:00:09.7]} 52... Rg6 {[%clk
0:00:09.1]} 53. Be3 {[%clk 0:00:10.1]} 53... Kg8 {[%clk 0:00:09.6]} 54. Rh5
{[%clk 0:00:09.9]} 54... Kg7 {[%clk 0:00:09.4]} 55. g4 {[%clk 0:00:10.3]} 55...
h6 {[%clk 0:00:09.4]} 56. Rf5 {[%clk 0:00:11]} 56... Kf7 {[%clk 0:00:09.5]} 57.
Kg3 {[%clk 0:00:11.6]} 57... Bf8 {[%clk 0:00:10]} 58. h4 {[%clk 0:00:12.1]}
58... Ke6 {[%clk 0:00:10.5]} 59. Kh3 {[%clk 0:00:11.1]} 59... Rg8 {[%clk
0:00:09]} 60. Rh5 {[%clk 0:00:10.7]} 60... Rh8 {[%clk 0:00:08.8]} 61. g5 {[%clk
0:00:10]} 61... fxg5 {[%clk 0:00:09.1]} 62. hxg5 {[%clk 0:00:10.3]} 62... Kf7
{[%clk 0:00:08.2]} 63. gxh6 {[%clk 0:00:10.4]} 63... Kf6 {[%clk 0:00:06.3]} 64.
Rf5+ {[%clk 0:00:10.4]} 64... Kg6 {[%clk 0:00:06.2]} 65. Rg5+ {[%clk 0:00:09.2]}
65... Kf6 {[%clk 0:00:06.2]} 66. Rf5+ {[%clk 0:00:08.5]} 66... Ke6 {[%clk
0:00:06.7]} 67. Rh5 {[%clk 0:00:06.8]} 67... Rh7 {[%clk 0:00:07.1]} 68. Kg4
{[%clk 0:00:06.3]} 68... Kf6 {[%clk 0:00:07.4]} 69. Rf5+ {[%clk 0:00:06.1]}
69... Ke6 {[%clk 0:00:07.5]} 70. Kh5 {[%clk 0:00:06.2]} 70... Rb7 {[%clk
0:00:05.5]} 71. Kg6 {[%clk 0:00:06]} 71... Bxh6 {[%clk 0:00:05.3]} 72. Kxh6
{[%clk 0:00:05]} 72... Rb4 {[%clk 0:00:06]} 73. Rg5 {[%clk 0:00:02.7]} 73...
Rxe4 {[%clk 0:00:06]} 74. Rg6+ {[%clk 0:00:03.3]} 74... Kd5 {[%clk 0:00:05.3]}
75. Bg5 {[%clk 0:00:04]} 75... Rg4 {[%clk 0:00:04.9]} 76. Kg7 {[%clk 0:00:04.7]}
76... e4 {[%clk 0:00:04.7]} 77. Kf6 {[%clk 0:00:04.8]} 77... Kc4 {[%clk
0:00:03.9]} 78. Kf5 {[%clk 0:00:04.8]} 78... Rg2 {[%clk 0:00:02.5]} 79. Kxe4
{[%clk 0:00:05]} 79... Rc2 {[%clk 0:00:02.9]} 80. Be3 {[%clk 0:00:03.8]} 80...
Kb3 {[%clk 0:00:03.8]} 81. Rb6+ {[%clk 0:00:03.6]} 81... Kc3 {[%clk 0:00:03.7]}
82. Bd4+ {[%clk 0:00:03]} 82... Kd2 {[%clk 0:00:04.1]} 83. Rb3 {[%clk
0:00:02.9]} 83... Kd1 {[%clk 0:00:04.5]} 84. Rh3 {[%clk 0:00:03.6]} 84... Re2+
{[%clk 0:00:04.6]} 85. Be3 {[%clk 0:00:04.3]} 85... Kc2 {[%clk 0:00:04.6]} 86.
Rg3 {[%clk 0:00:04.8]} 86... Kb2 {[%clk 0:00:04.5]} 87. Kd4 {[%clk 0:00:05.2]}
87... Rc2 {[%clk 0:00:05.4]} 88. Rg5 {[%clk 0:00:05.5]} 88... Ka2 {[%clk
0:00:05.4]} 89. Ke4 {[%clk 0:00:06]} 89... Kb2 {[%clk 0:00:06.2]} 90. Kf3 {[%clk
0:00:06.3]} 90... Rc3 {[%clk 0:00:06.5]} 91. Rb5+ {[%clk 0:00:06.7]} 91... Rb3
{[%clk 0:00:07.4]} 92. Rc5 {[%clk 0:00:05.9]} 92... Ka3 {[%clk 0:00:07.7]} 93.
Ke4 {[%clk 0:00:05.7]} 93... Kb4 {[%clk 0:00:08.6]} 94. Bd4 {[%clk 0:00:06]}
94... Ka4 {[%clk 0:00:07.9]} 95. Kd5 {[%clk 0:00:06.2]} 95... Kb4 {[%clk
0:00:08.3]} 96. Rc4+ {[%clk 0:00:06.2]} 96... Ka3 {[%clk 0:00:08.6]} 97. Bc3
{[%clk 0:00:06.5]} 97... Rb5+ {[%clk 0:00:08.4]} 98. Kd4 {[%clk 0:00:06.4]}
98... Rb8 {[%clk 0:00:08.9]} 99. Kd3 {[%clk 0:00:06.7]} 99... Kb3 {[%clk
0:00:09.3]} 100. Rd4 {[%clk 0:00:06.2]} 100... Rg8 {[%clk 0:00:08.9]} 101. Rb4+
{[%clk 0:00:06.1]} 101... Ka3 {[%clk 0:00:09.4]} 102. Kc2 {[%clk 0:00:06.5]}
102... Rg2+ {[%clk 0:00:09.3]} 103. Kd3 {[%clk 0:00:06.8]} 103... Rg3+ {[%clk
0:00:09.3]} 104. Kd2 {[%clk 0:00:07.3]} 104... Rg2+ {[%clk 0:00:09.5]} 105. Kd1
{[%clk 0:00:07.8]} 105... Rg1+ {[%clk 0:00:09.8]} 106. Ke2 {[%clk 0:00:07]}
106... Rg2+ {[%clk 0:00:10]} 107. Kf3 {[%clk 0:00:07.2]} 107... Rc2 {[%clk
0:00:10.4]} 108. Be1 {[%clk 0:00:06.5]} 108... Rc1 {[%clk 0:00:10.5]} 109. Re4
{[%clk 0:00:06.4]} 109... Kb3 {[%clk 0:00:10.9]} 110. Kf4 {[%clk 0:00:06.8]}
110... Rc4 {[%clk 0:00:10.5]} 111. Rxc4 {[%clk 0:00:06]} 111... Kxc4 {[%clk
0:00:11.4]} 1/2-1/2